[Event "CZE-ch Youth G10-G12-G14 2022"]
[Site "Luhacovice"]
[Date "2022.03.13"]
[Round "2.7"]
[White "Melicharova Veronika"]
[Black "Vlckova Linda"]
[Result "1-0"]
[ECO "C01"]
[WhiteElo "1000"]
[BlackElo "1000"]
[Annotator "NA"]
[PlyCount "33"]
[EventDate "2022.03.12"]
[EventType "swiss"]
[EventCountry "CZE"]
[SourceTitle "playchess.com"]
[Source "ChessBase"]
[SourceQuality "1"]
[TimeControl "40/5400+30:1800+30"]

1. e4 {[%emt 0:00:05]} e6 {[%emt 0:00:35]} 2. d4 {[%emt 0:00:30]} f5 {[%emt 0:00:40]} 3. e5 {[%emt 0:01:35]} d6 {[%emt 0:04:30]} 4. exd6 {[%emt 0:06:01]} Qxd6 {[%emt 0:00:17]} 5. Nf3 {[%emt 0:03:32]} Qd8 {[%emt 0:00:56]} 6. Bc4 {[%emt 0:01:00]} Be7 {[%emt 0:00:53]} 7. O-O {[%emt 0:02:43]} Nc6 {[%emt 0:00:22]} 8. Bb5 {[%emt 0:01:55]} Bd7 {[%emt 0:00:19]} 9. Be3 {[%emt 0:02:40]} h6 {[%emt 0:00:31]} 10. Ne5 {[%emt 0:02:21]} Nxe5 {[%emt 0:00:54]} 11. Bxd7+ {[%emt 0:00:52]} Nxd7 {[%emt 0:00:25]} 12. Qh5+ {[%emt 0:00:39]} g6 {[%emt 0:03:42]} 13. Qxg6+ {[%emt 0:13:47]} Kf8 {[%emt 0:00:30]} 14. Nc3 {[%emt 0:00:30]} Bf6 {[%emt 0:00:30]} 15. Qh5 {[%emt 0:00:30]} Qe7 {[%emt 0:00:30]} 16. a3 {[%emt 0:04:35]} e5 {[%emt 0:00:47]} 17. Rab1 {[%emt 0:00:30]} 1-0

[Event "CZE-ch Youth G10-G12-G14 2022"]
[Site "Luhacovice"]
[Date "2022.03.13"]
[Round "2.9"]
[White "Vanickova Natalie"]
[Black "Silhankova Simona"]
[Result "1-0"]
[ECO "C29"]
[WhiteElo "1000"]
[BlackElo "1000"]
[Annotator "NA"]
[PlyCount "129"]
[EventDate "2022.03.12"]
[EventType "swiss"]
[EventCountry "CZE"]
[SourceTitle "playchess.com"]
[Source "ChessBase"]
[SourceQuality "1"]
[TimeControl "40/5400+30:1800+30"]

1. e4 {[%emt 0:00:06]} e5 {[%emt 0:00:20]} 2. f4 {[%emt 0:00:08]} Nf6 {[%emt 0:01:14]} 3. Nc3 {[%emt 0:00:42]} Nc6 {[%emt 0:00:50]} 4. Nf3 {[%emt 0:00:26]} Bc5 {[%emt 0:01:20]} 5. d3 {[%emt 0:01:47]} O-O {[%emt 0:01:18]} 6. Bd2 {[%emt 0:01:50]} Ng4 {[%emt 0:01:17]} 7. Qe2 {[%emt 0:03:20]} d6 {[%emt 0:00:56]} 8. O-O-O {[%emt 0:00:32]} Nf6 {[%emt 0:01:20]} 9. h4 {[%emt 0:01:57]} Bg4 {[%emt 0:00:47]} 10. Qe1 {[%emt 0:04:54]} Nd4 {[%emt 0:03:33]} 11. Be2 {[%emt 0:01:42]} Nc6 {[%emt 0:02:06]} 12. Ng1 {[%emt 0:02:56]} Bh5 {[%emt 0:01:06]} 13. Bxh5 {[%emt 0:01:41]} Nxh5 {[%emt 0:00:31]} 14. g4 {[%emt 0:01:13]} Nxf4 {[%emt 0:02:00]} 15. Bxf4 {[%emt 0:01:09]} exf4 {[%emt 0:00:46]} 16. Qf1 {[%emt 0:01:35]} Be3+ {[%emt 0:00:50]} 17. Kb1 {[%emt 0:00:51]} Nb4 {[%emt 0:02:05]} 18. Nce2 {[%emt 0:01:29]} Qd7 {[%emt 0:01:50]} 19. a3 {[%emt 0:01:44]} a5 {[%emt 0:01:13]} 20. Nxf4 {[%emt 0:01:47]} Qa4 {[%emt 0:02:23]} 21. Qe2 {[%emt 0:04:29]} Bd4 {[%emt 0:01:43]} 22. c3 {[%emt 0:01:14]} Qb3 {[%emt 0:02:43]} 23. cxd4 {[%emt 0:04:31]} Qa2+ {[%emt 0:00:50]} 24. Kc1 {[%emt 0:01:37]} Qa1+ {[%emt 0:01:39]} 25. Kd2 {[%emt 0:00:41]} Qxb2+ {[%emt 0:01:18]} 26. Ke3 {[%emt 0:01:00]} Qc3 {[%emt 0:02:06]} 27. axb4 {[%emt 0:00:44]} axb4 {[%emt 0:01:01]} 28. Nd5 {[%emt 0:02:35]} Qb3 {[%emt 0:02:13]} 29. Nxc7 {[%emt 0:00:40]} Ra2 {[%emt 0:00:45]} 30. Rd2 {[%emt 0:01:29]} Ra1 {[%emt 0:03:03]} 31. Rb2 {[%emt 0:01:08]} Qa3 {[%emt 0:00:54]} 32. Nb5 {[%emt 0:00:44]} Qa5 {[%emt 0:01:23]} 33. Nxd6 {[%emt 0:00:58]} Ra2 {[%emt 0:01:39]} 34. Rxa2 {[%emt 0:01:27]} Qc7 {[%emt 0:02:30]} 35. e5 {[%emt 0:02:57]} b3 {[%emt 0:06:01]} 36. Rb2 {[%emt 0:01:31]} Qc3 {[%emt 0:02:00]} 37. Nxb7 {[%emt 0:00:35]} h6 {[%emt 0:01:45]} 38. Nf3 {[%emt 0:02:04]} Rb8 {[%emt 0:00:59]} 39. Na5 {[%emt 0:00:28]} Qxa5 {[%emt 0:00:55]} 40. Rhb1 {[%emt 0:00:33]} Qa4 {[%emt 0:01:09]} 41. Qd1 {[%emt 0:30:46]} f6 {[%emt 0:34:16]} 42. Rxb3 {[%emt 0:02:13]} Re8 {[%emt 0:04:24]} 43. Kf4 {[%emt 0:04:41]} g5+ {[%emt 0:00:41]} 44. hxg5 {[%emt 0:01:35]} fxg5+ {[%emt 0:00:37]} 45. Kf5 {[%emt 0:01:14]} Rf8+ {[%emt 0:01:20]} 46. Kg6 {[%emt 0:01:42]} Qe8+ {[%emt 0:01:44]} 47. Kxh6 {[%emt 0:00:50]} Qe6+ {[%emt 0:00:00]} 48. Kxg5 {[%emt 0:01:25]} Qe7+ {[%emt 0:00:35]} 49. Kh5 {[%emt 0:01:07]} Qh7+ {[%emt 0:00:39]} 50. Kg5 {[%emt 0:01:21]} Qe7+ {[%emt 0:01:10]} 51. Kh5 {[%emt 0:00:55]} Qe8+ {[%emt 0:01:18]} 52. Kh4 {[%emt 0:00:44]} Qd8+ {[%emt 0:01:21]} 53. Kg3 {[%emt 0:00:27]} Qc7 {[%emt 0:10:17]} 54. Rb8 {[%emt 0:00:53]} Rxb8 {[%emt 0:00:55]} 55. Rxb8+ {[%emt 0:00:22]} Qxb8 {[%emt 0:00:13]} 56. Ng5 {[%emt 0:00:54]} Qd8 {[%emt 0:01:08]} 57. Ne6 {[%emt 0:01:31]} Qd5 {[%emt 0:01:20]} 58. Nc7 {[%emt 0:01:18]} Qxd4 {[%emt 0:00:27]} 59. Qb3+ {[%emt 0:00:38]} Kg7 {[%emt 0:00:53]} 60. Ne6+ {[%emt 0:00:25]} Kg6 {[%emt 0:01:05]} 61. Nxd4 {[%emt 0:02:20]} Kg7 {[%emt 0:00:47]} 62. Qe6 {[%emt 0:00:56]} Kh8 {[%emt 0:01:25]} 63. Nf5 {[%emt 0:00:11]} Kh7 {[%emt 0:00:30]} 64. Qh6+ {[%emt 0:00:12]} Kg8 {[%emt 0:00:26]} 65. Qg7# {[%emt 0:00:11]} 1-0

[Event "CZE-ch Youth G10-G12-G14 2022"]
[Site "Luhacovice"]
[Date "2022.03.13"]
[Round "2.10"]
[White "Ramseier, Jana S."]
[Black "Topencikova Ellen"]
[Result "1-0"]
[ECO "B10"]
[WhiteElo "2090"]
[BlackElo "1000"]
[Annotator "ChessBase"]
[PlyCount "35"]
[EventDate "2022.03.12"]
[EventType "swiss"]
[EventCountry "CZE"]
[SourceTitle "playchess.com"]
[Source "ChessBase"]
[SourceQuality "1"]
[TimeControl "40/5400+30:1800+30"]

1. e4 {[%emt 0:00:06]} c6 {[%emt 0:00:16]} 2. Bc4 {[%emt 0:00:21]} d5 {[%emt 0:00:29]} 3. exd5 {[%emt 0:00:24]} cxd5 {[%emt 0:00:26]} 4. Bb5+ {[%emt 0:00:29]} Bd7 {[%emt 0:00:24]} 5. Nc3 {[%emt 0:00:21]} Bxb5 {[%emt 0:00:31]} 6. Nxb5 {[%emt 0:00:16]} Nf6 {[%emt 0:00:27]} 7. d3 {[%emt 0:00:23]} e6 {[%emt 0:00:34]} 8. Bf4 {[%emt 0:00:36]} Bc5 {[%emt 0:01:00]} 9. Nc7+ {[%emt 0:00:38]} Kf8 {[%emt 0:02:43]} 10. Nxa8 {[%emt 0:00:36]} Ng4 {[%emt 0:00:46]} 11. Qxg4 {[%emt 0:01:22]} Bb4+ {[%emt 0:01:19]} 12. c3 {[%emt 0:00:28]} Be7 {[%emt 0:02:23]} 13. Nf3 {[%emt 0:00:44]} f5 {[%emt 0:01:49]} 14. Qg3 {[%emt 0:00:56]} h5 {[%emt 0:04:06]} 15. Ng5 {[%emt 0:00:22]} Kg8 {[%emt 0:02:31]} 16. Bc7 {[%emt 0:00:41]} h4 {[%emt 0:00:54]} 17. Qf4 {[%emt 0:01:09]} Bxg5 {[%emt 0:02:04]} 18. Qxg5 {[%emt 0:00:35]} 1-0

[Event "CZE-ch Youth G10-G12-G14 2022"]
[Site "Luhacovice"]
[Date "2022.03.13"]
[Round "2.11"]
[White "Zadrapova Gabriela"]
[Black "Stepankova Linda"]
[Result "1/2-1/2"]
[ECO "B13"]
[WhiteElo "1000"]
[BlackElo "1000"]
[Annotator "NA"]
[PlyCount "67"]
[EventDate "2022.03.12"]
[EventType "swiss"]
[EventCountry "CZE"]
[SourceTitle "playchess.com"]
[Source "ChessBase"]
[SourceQuality "1"]
[TimeControl "40/5400+30:1800+30"]

1. e4 {[%emt 0:00:08]} c6 {[%emt 0:00:30]} 2. Nf3 {[%emt 0:00:36]} d5 {[%emt 0:00:00]} 3. exd5 {[%emt 0:00:37]} cxd5 {[%emt 0:00:00]} 4. Nc3 {[%emt 0:00:39]} Nf6 {[%emt 0:00:00]} 5. d4 {[%emt 0:00:31]} Nc6 {[%emt 0:00:16]} 6. Bd3 {[%emt 0:00:58]} Bg4 {[%emt 0:00:21]} 7. O-O {[%emt 0:00:27]} e6 {[%emt 0:00:36]} 8. h3 {[%emt 0:00:58]} Bh5 {[%emt 0:00:08]} 9. Bf4 {[%emt 0:00:34]} Bd6 {[%emt 0:00:35]} 10. Ne2 {[%emt 0:00:52]} O-O {[%emt 0:04:21]} 11. Re1 {[%emt 0:01:36]} Bxf3 {[%emt 0:01:12]} 12. gxf3 {[%emt 0:00:18]} Nxd4 {[%emt 0:01:47]} 13. Bxd6 {[%emt 0:00:29]} Nxe2+ {[%emt 0:00:35]} 14. Qxe2 {[%emt 0:01:16]} Qxd6 {[%emt 0:00:16]} 15. Rad1 {[%emt 0:00:55]} Rfe8 {[%emt 0:03:20]} 16. Rd2 {[%emt 0:02:50]} e5 {[%emt 0:02:42]} 17. Red1 {[%emt 0:00:39]} Rad8 {[%emt 0:02:44]} 18. Bb5 {[%emt 0:00:52]} Re7 {[%emt 0:01:20]} 19. Bc4 {[%emt 0:00:22]} d4 {[%emt 0:04:18]} 20. c3 {[%emt 0:00:35]} h6 {[%emt 0:06:26]} 21. Qd3 {[%emt 0:00:28]} e4 {[%emt 0:04:30]} 22. Qe2 {[%emt 0:00:42]} exf3 {[%emt 0:03:10]} 23. Qxf3 {[%emt 0:00:33]} Qc6 {[%emt 0:02:06]} 24. Qd3 {[%emt 0:00:36]} Ne4 {[%emt 0:02:42]} 25. Re2 {[%emt 0:00:45]} Qg6+ {[%emt 0:04:04]} 26. Kf1 {[%emt 0:01:07]} a6 {[%emt 0:05:30]} 27. cxd4 {[%emt 0:00:58]} b5 {[%emt 0:01:03]} 28. Bb3 {[%emt 0:00:40]} Qf5 {[%emt 0:04:24]} 29. f3 {[%emt 0:01:23]} Qxh3+ {[%emt 0:00:55]} 30. Rg2 {[%emt 0:00:33]} Qh1+ {[%emt 0:02:21]} 31. Rg1 {[%emt 0:00:13]} Qh3+ {[%emt 0:01:20]} 32. Rg2 {[%emt 0:00:12]} Qh1+ {[%emt 0:03:15]} 33. Rg1 {[%emt 0:00:49]} Qh3+ {[%emt 0:03:41]} 34. Rg2 {[%emt 0:00:18]} 1/2-1/2

[Event "CZE-ch Youth G10-G12-G14 2022"]
[Site "Luhacovice"]
[Date "2022.03.13"]
[Round "2.12"]
[White "Bouchalova, Kveta"]
[Black "Buchtova, Viktorie"]
[Result "0-1"]
[ECO "B78"]
[WhiteElo "1303"]
[BlackElo "1464"]
[Annotator "NA"]
[PlyCount "144"]
[EventDate "2022.03.12"]
[EventType "swiss"]
[EventCountry "CZE"]
[SourceTitle "playchess.com"]
[Source "ChessBase"]
[SourceQuality "1"]
[TimeControl "40/5400+30:1800+30"]

1. e4 {[%emt 0:00:03]} c5 {[%emt 0:00:04]} 2. Nf3 {[%emt 0:00:05]} Nc6 {[%emt 0:00:03]} 3. d4 {[%emt 0:00:06]} cxd4 {[%emt 0:00:03]} 4. Nxd4 {[%emt 0:00:06]} g6 {[%emt 0:00:04]} 5. Nc3 {[%emt 0:00:17]} Bg7 {[%emt 0:00:05]} 6. Be3 {[%emt 0:00:16]} Nf6 {[%emt 0:00:06]} 7. Bc4 {[%emt 0:01:39]} O-O {[%emt 0:00:06]} 8. f3 {[%emt 0:02:11]} d6 {[%emt 0:00:06]} 9. Qd2 {[%emt 0:00:32]} Bd7 {[%emt 0:00:07]} 10. O-O-O {[%emt 0:00:25]} Rc8 {[%emt 0:00:03]} 11. Bb3 {[%emt 0:05:29]} Ne5 {[%emt 0:00:11]} 12. h4 {[%emt 0:05:30]} Nc4 {[%emt 0:00:05]} 13. Bxc4 {[%emt 0:01:02]} Rxc4 {[%emt 0:00:03]} 14. g4 {[%emt 0:09:05]} h5 {[%emt 0:00:38]} 15. gxh5 {[%emt 0:04:35]} Nxh5 {[%emt 0:00:07]} 16. Nde2 {[%emt 0:02:37]} Qa5 {[%emt 0:01:21]} 17. Bh6 {[%emt 0:06:27]} Rfc8 {[%emt 0:02:00]} 18. Bxg7 {[%emt 0:03:02]} Kxg7 {[%emt 0:00:21]} 19. b3 {[%emt 0:06:23]} R4c5 {[%emt 0:05:05]} 20. Kb2 {[%emt 0:04:29]} b5 {[%emt 0:02:15]} 21. Rc1 {[%emt 0:02:55]} R8c6 {[%emt 0:04:55]} 22. Nb1 {[%emt 0:05:38]} b4 {[%emt 0:02:08]} 23. Rhd1 {[%emt 0:03:09]} Ra6 {[%emt 0:01:41]} 24. a3 {[%emt 0:02:09]} bxa3+ {[%emt 0:06:44]} 25. Ka2 {[%emt 0:00:23]} Qxd2 {[%emt 0:01:33]} 26. Rxd2 {[%emt 0:00:26]} Nf6 {[%emt 0:00:45]} 27. Nec3 {[%emt 0:03:18]} Rh5 {[%emt 0:04:17]} 28. Rh1 {[%emt 0:01:58]} Be6 {[%emt 0:01:33]} 29. f4 {[%emt 0:03:46]} Bg4 {[%emt 0:03:54]} 30. Rd3 {[%emt 0:01:37]} Rc5 {[%emt 0:09:51]} 31. Rh2 {[%emt 0:02:17]} Bd7 {[%emt 0:03:35]} 32. Rg2 {[%emt 0:02:57]} Rh5 {[%emt 0:04:53]} 33. Rh2 {[%emt 0:01:39]} Bc6 {[%emt 0:00:09]} 34. Nd2 {[%emt 0:02:30]} Ng4 {[%emt 0:00:16]} 35. Rg2 {[%emt 0:01:51]} Nf6 {[%emt 0:05:47]} 36. Rh3 {[%emt 0:03:28]} d5 {[%emt 0:01:52]} 37. e5 {[%emt 0:04:00]} Ne4 {[%emt 0:01:32]} 38. Ndxe4 {[%emt 0:00:34]} dxe4 {[%emt 0:00:40]} 39. Rgh2 {[%emt 0:01:49]} f6 {[%emt 0:01:26]} 40. Rg3 {[%emt 0:03:22]} Kf7 {[%emt 0:03:45]} 41. e6+ {[%emt 0:31:22]} Kxe6 {[%emt 0:31:09]} 42. Rxg6 {[%emt 0:00:08]} Kf5 {[%emt 0:01:51]} 43. Rg7 {[%emt 0:00:21]} e6 {[%emt 0:00:31]} 44. Re7 {[%emt 0:00:27]} Bd5 {[%emt 0:01:33]} 45. Nb5 {[%emt 0:00:28]} Kxf4 {[%emt 0:00:42]} 46. Rf2+ {[%emt 0:00:39]} Kg3 {[%emt 0:04:48]} 47. Rxf6 {[%emt 0:00:24]} Rf5 {[%emt 0:01:41]} 48. Rg7+ {[%emt 0:00:56]} Kf2 {[%emt 0:01:29]} 49. Rxf5+ {[%emt 0:00:29]} exf5 {[%emt 0:00:11]} 50. h5 {[%emt 0:00:35]} Rh6 {[%emt 0:02:19]} 51. Rg5 {[%emt 0:00:35]} Be6 {[%emt 0:03:50]} 52. Nd4 {[%emt 0:01:39]} Bd7 {[%emt 0:10:48]} 53. Kxa3 {[%emt 0:00:52]} e3 {[%emt 0:00:18]} 54. c4 {[%emt 0:00:18]} e2 {[%emt 0:00:21]} 55. Nxe2 {[%emt 0:00:12]} Kxe2 {[%emt 0:00:05]} 56. Kb4 {[%emt 0:00:22]} f4 {[%emt 0:00:35]} 57. Re5+ {[%emt 0:00:54]} Kf1 {[%emt 0:00:31]} 58. c5 {[%emt 0:00:19]} f3 {[%emt 0:00:10]} 59. Rd5 {[%emt 0:00:23]} Be8 {[%emt 0:03:52]} 60. Rd6 {[%emt 0:00:58]} Rxh5 {[%emt 0:00:24]} 61. c6 {[%emt 0:00:15]} Bxc6 {[%emt 0:00:43]} 62. Rxc6 {[%emt 0:00:04]} Rg5 {[%emt 0:00:25]} 63. Kc3 {[%emt 0:01:13]} f2 {[%emt 0:00:40]} 64. Rd6 {[%emt 0:00:55]} Kg1 {[%emt 0:00:20]} 65. Rd1+ {[%emt 0:00:42]} f1=Q {[%emt 0:00:08]} 66. Rxf1+ {[%emt 0:00:03]} Kxf1 {[%emt 0:00:07]} 67. Kb4 {[%emt 0:00:05]} Ke2 {[%emt 0:00:08]} 68. Ka4 {[%emt 0:00:07]} a5 {[%emt 0:00:03]} 69. Ka3 {[%emt 0:00:22]} Kd2 {[%emt 0:00:04]} 70. Ka4 {[%emt 0:00:25]} Kc2 {[%emt 0:00:29]} 71. Ka3 {[%emt 0:00:25]} Rb5 {[%emt 0:00:13]} 72. Ka4 {[%emt 0:00:18]} Rxb3 {[%emt 0:00:05]} 0-1

[Event "CZE-ch Youth G10-G12-G14 2022"]
[Site "Luhacovice"]
[Date "2022.03.13"]
[Round "2.13"]
[White "Markina, Sofiia"]
[Black "Barteckova, Nikol"]
[Result "1-0"]
[ECO "A08"]
[WhiteElo "1367"]
[BlackElo "1140"]
[Annotator "NA"]
[PlyCount "70"]
[EventDate "2022.03.12"]
[EventType "swiss"]
[EventCountry "CZE"]
[SourceTitle "playchess.com"]
[Source "ChessBase"]
[SourceQuality "1"]
[TimeControl "40/5400+30:1800+30"]

1. Nf3 {[%emt 0:00:04]} c5 {[%emt 0:00:33]} 2. g3 {[%emt 0:00:52]} Nc6 {[%emt 0:00:53]} 3. Bg2 {[%emt 0:00:31]} e6 {[%emt 0:00:54]} 4. O-O {[%emt 0:00:42]} Nf6 {[%emt 0:00:11]} 5. d3 {[%emt 0:00:19]} d5 {[%emt 0:01:46]} 6. Qe1 {[%emt 0:11:02]} Be7 {[%emt 0:04:16]} 7. e4 {[%emt 0:20:06]} O-O {[%emt 0:04:32]} 8. Bf4 {[%emt 0:16:22]} Re8 {[%emt 0:02:13]} 9. e5 {[%emt 0:05:41]} Nd7 {[%emt 0:02:15]} 10. c3 {[%emt 0:03:39]} Nf8 {[%emt 0:04:44]} 11. Qe2 {[%emt 0:06:32]} Ng6 {[%emt 0:00:30]} 12. Bc1 {[%emt 0:00:30]} Qc7 {[%emt 0:18:20]} 13. Re1 {[%emt 0:00:43]} Bd7 {[%emt 0:00:30]} 14. h4 {[%emt 0:00:30]} Rac8 {[%emt 0:00:56]} 15. h5 {[%emt 0:02:07]} Nf8 {[%emt 0:06:22]} 16. Bf4 {[%emt 0:16:47]} b5 {[%emt 0:01:11]} 17. Nh2 {[%emt 0:00:30]} a6 {[%emt 0:00:30]} 18. Ng4 {[%emt 0:00:30]} Qd8 {[%emt 0:00:30]} 19. Nh6+ {[%emt 0:00:30]} gxh6 {[%emt 0:00:30]} 20. Qg4+ {[%emt 0:00:30]} Bg5 {[%emt 0:00:30]} 21. Bd2 {[%emt 0:00:30]} Kh8 {[%emt 0:00:30]} 22. f4 {[%emt 0:00:30]} Be7 {[%emt 0:00:30]} 23. Qh3 {[%emt 0:00:30]} Qb6 {[%emt 0:02:06]} 24. g4 {[%emt 0:01:22]} Qd8 {[%emt 0:00:30]} 25. f5 {[%emt 0:04:54]} Bg5 {[%emt 0:02:05]} 26. f6 {[%emt 0:00:24]} Qc7 {[%emt 0:00:59]} 27. Bxg5 {[%emt 0:01:16]} hxg5 {[%emt 0:00:14]} 28. h6 {[%emt 0:00:50]} Nxe5 {[%emt 0:00:26]} 29. Qh5 {[%emt 0:01:13]} Neg6 {[%emt 0:00:19]} 30. Qxg5 {[%emt 0:00:10]} Qg3 {[%emt 0:00:59]} 31. Nd2 {[%emt 0:00:32]} Qxd3 {[%emt 0:02:33]} 32. Rad1 {[%emt 0:00:22]} Qg3 {[%emt 0:00:27]} 33. Nf3 {[%emt 0:00:34]} Red8 {[%emt 0:04:09]} 34. Ne5 {[%emt 0:02:53]} Be8 {[%emt 0:00:50]} 35. Nxg6+ {[%emt 0:01:00]} Kg8 {[%emt 0:15:00]} 1-0

[Event "CZE-ch Youth G10-G12-G14 2022"]
[Site "Luhacovice"]
[Date "2022.03.13"]
[Round "2.14"]
[White "Stavova, Lucie"]
[Black "Horkova, Tereza"]
[Result "1-0"]
[ECO "B23"]
[WhiteElo "1048"]
[BlackElo "1375"]
[Annotator "NA"]
[PlyCount "46"]
[EventDate "2022.03.12"]
[EventType "swiss"]
[EventCountry "CZE"]
[SourceTitle "playchess.com"]
[Source "ChessBase"]
[SourceQuality "1"]
[TimeControl "40/5400+30:1800+30"]

1. e4 {[%emt 0:00:04]} c5 {[%emt 0:00:03]} 2. Nc3 {[%emt 0:00:12]} e6 {[%emt 0:00:21]} 3. g3 {[%emt 0:00:14]} d5 {[%emt 0:02:12]} 4. d3 {[%emt 0:05:11]} Nc6 {[%emt 0:05:00]} 5. Bg2 {[%emt 0:02:36]} d4 {[%emt 0:01:34]} 6. Nce2 {[%emt 0:02:17]} e5 {[%emt 0:02:17]} 7. Nh3 {[%emt 0:02:12]} g6 {[%emt 0:06:15]} 8. f4 {[%emt 0:01:09]} f6 {[%emt 0:07:42]} 9. O-O {[%emt 0:01:53]} Nge7 {[%emt 0:01:48]} 10. fxe5 {[%emt 0:05:31]} Bxh3 {[%emt 0:02:57]} 11. Bxh3 {[%emt 0:01:00]} fxe5 {[%emt 0:02:12]} 12. c3 {[%emt 0:03:32]} Bg7 {[%emt 0:02:32]} 13. Bd2 {[%emt 0:08:20]} Qd6 {[%emt 0:01:23]} 14. Qb3 {[%emt 0:01:56]} Rf8 {[%emt 0:04:50]} 15. Rxf8+ {[%emt 0:07:58]} Bxf8 {[%emt 0:03:50]} 16. Rf1 {[%emt 0:00:37]} Nd8 {[%emt 0:00:09]} 17. cxd4 {[%emt 0:04:38]} exd4 {[%emt 0:04:40]} 18. Nf4 {[%emt 0:05:45]} Bh6 {[%emt 0:08:01]} 19. Ne6 {[%emt 0:08:01]} c4 {[%emt 0:26:02]} 20. Qxc4 {[%emt 0:02:16]} Nxe6 {[%emt 0:02:30]} 21. Bxh6 {[%emt 0:01:14]} Kd7 {[%emt 0:00:51]} 22. Rf6 {[%emt 0:06:34]} Rc8 {[%emt 0:01:12]} 23. Bxe6+ {[%emt 0:00:47]} Kd8 {[%emt 0:00:42]} 1-0

[Event "CZE-ch Youth G10-G12-G14 2022"]
[Site "Luhacovice"]
[Date "2022.03.13"]
[Round "2.15"]
[White "Kammova, Katerina"]
[Black "Stehlikova, Vanessa"]
[Result "0-1"]
[ECO "C21"]
[WhiteElo "1376"]
[BlackElo "1039"]
[Annotator "NA"]
[PlyCount "132"]
[EventDate "2022.03.12"]
[EventType "swiss"]
[EventCountry "CZE"]
[SourceTitle "playchess.com"]
[Source "ChessBase"]
[SourceQuality "1"]
[TimeControl "40/5400+30:1800+30"]

1. e4 {[%emt 0:00:07]} e5 {[%emt 0:00:13]} 2. d4 {[%emt 0:00:08]} exd4 {[%emt 0:01:07]} 3. Nf3 {[%emt 0:00:12]} Bc5 {[%emt 0:00:58]} 4. c3 {[%emt 0:01:36]} dxc3 {[%emt 0:00:50]} 5. Nxc3 {[%emt 0:00:20]} d6 {[%emt 0:01:13]} 6. Qb3 {[%emt 0:03:19]} Qd7 {[%emt 0:01:46]} 7. e5 {[%emt 0:13:51]} Nc6 {[%emt 0:04:34]} 8. Ne4 {[%emt 0:08:30]} Bb4+ {[%emt 0:00:57]} 9. Nc3 {[%emt 0:04:41]} b6 {[%emt 0:02:31]} 10. Bb5 {[%emt 0:01:08]} Bxc3+ {[%emt 0:00:51]} 11. Qxc3 {[%emt 0:00:12]} Bb7 {[%emt 0:00:18]} 12. Nd4 {[%emt 0:00:30]} Nge7 {[%emt 0:00:43]} 13. exd6 {[%emt 0:06:30]} Qxd6 {[%emt 0:01:51]} 14. Nxc6 {[%emt 0:05:50]} Nxc6 {[%emt 0:00:20]} 15. Qxg7 {[%emt 0:03:49]} O-O-O {[%emt 0:00:35]} 16. Qg4+ {[%emt 0:02:31]} Qd7 {[%emt 0:00:31]} 17. Qxd7+ {[%emt 0:00:48]} Rxd7 {[%emt 0:00:04]} 18. Be3 {[%emt 0:00:43]} Rg8 {[%emt 0:01:58]} 19. O-O {[%emt 0:01:43]} Rdd8 {[%emt 0:01:02]} 20. f3 {[%emt 0:04:34]} Nb4 {[%emt 0:00:14]} 21. Bf2 {[%emt 0:03:45]} Nd3 {[%emt 0:02:04]} 22. Bh4 {[%emt 0:11:15]} Rd4 {[%emt 0:02:03]} 23. Bf6 {[%emt 0:07:17]} Ne5 {[%emt 0:09:10]} 24. Bxe5 {[%emt 0:02:27]} Rd5 {[%emt 0:00:07]} 25. Bc4 {[%emt 0:00:46]} Rxe5 {[%emt 0:00:19]} 26. Bxf7 {[%emt 0:00:17]} Rg7 {[%emt 0:00:10]} 27. Bh5 {[%emt 0:01:22]} Rxh5 {[%emt 0:00:18]} 28. g3 {[%emt 0:01:15]} Rd5 {[%emt 0:01:00]} 29. Rf2 {[%emt 0:00:37]} Rd3 {[%emt 0:00:20]} 30. f4 {[%emt 0:00:13]} Rgd7 {[%emt 0:00:32]} 31. f5 {[%emt 0:00:45]} Rd1+ {[%emt 0:00:21]} 32. Rf1 {[%emt 0:00:34]} Rxa1 {[%emt 0:00:21]} 33. Rxa1 {[%emt 0:00:07]} Rf7 {[%emt 0:00:07]} 34. g4 {[%emt 0:00:09]} Bf3 {[%emt 0:00:21]} 35. h3 {[%emt 0:00:17]} Rf6 {[%emt 0:01:11]} 36. Rf1 {[%emt 0:00:17]} Bd5 {[%emt 0:00:10]} 37. g5 {[%emt 0:00:28]} Rf7 {[%emt 0:00:24]} 38. a3 {[%emt 0:00:06]} Bc4 {[%emt 0:00:16]} 39. Rf4 {[%emt 0:00:14]} Bd3 {[%emt 0:00:20]} 40. f6 {[%emt 0:00:12]} Bg6 {[%emt 0:00:38]} 41. Kg2 {[%emt 0:30:30]} Kd7 {[%emt 0:30:33]} 42. Kg3 {[%emt 0:00:29]} Ke6 {[%emt 0:00:07]} 43. Kg4 {[%emt 0:00:28]} c5 {[%emt 0:00:45]} 44. h4 {[%emt 0:00:19]} h5+ {[%emt 0:00:36]} 45. gxh6 {[%emt 0:01:04]} Rxf6 {[%emt 0:00:33]} 46. Rxf6+ {[%emt 0:00:03]} Kxf6 {[%emt 0:00:02]} 47. h5 {[%emt 0:00:06]} Bh7 {[%emt 0:00:28]} 48. Kf4 {[%emt 0:00:12]} a5 {[%emt 0:00:18]} 49. a4 {[%emt 0:01:24]} c4 {[%emt 0:00:09]} 50. Kg4 {[%emt 0:00:13]} Kf7 {[%emt 0:01:00]} 51. Kg5 {[%emt 0:00:15]} Kg8 {[%emt 0:00:11]} 52. Kf6 {[%emt 0:00:24]} Kh8 {[%emt 0:00:20]} 53. Ke6 {[%emt 0:00:13]} Bc2 {[%emt 0:00:16]} 54. Kd5 {[%emt 0:00:28]} Bxa4 {[%emt 0:01:16]} 55. Kxc4 {[%emt 0:00:06]} b5+ {[%emt 0:00:14]} 56. Kc3 {[%emt 0:00:16]} b4+ {[%emt 0:00:28]} 57. Kc4 {[%emt 0:00:04]} b3 {[%emt 0:00:38]} 58. Kc5 {[%emt 0:00:07]} Bd7 {[%emt 0:00:14]} 59. Kc4 {[%emt 0:00:21]} a4 {[%emt 0:00:08]} 60. Kb4 {[%emt 0:00:10]} Kh7 {[%emt 0:00:18]} 61. Ka3 {[%emt 0:00:09]} Kxh6 {[%emt 0:00:51]} 62. Kb4 {[%emt 0:00:11]} Kxh5 {[%emt 0:00:21]} 63. Kc3 {[%emt 0:00:28]} Kg4 {[%emt 0:00:11]} 64. Kb4 {[%emt 0:00:05]} Kf3 {[%emt 0:00:13]} 65. Ka3 {[%emt 0:01:37]} Ke2 {[%emt 0:00:09]} 66. Kb4 {[%emt 0:00:31]} Kd2 {[%emt 0:00:36]} 0-1